[Event "Titled Tuesday Blitz December 06 Late 2022"]
[White "Renjith, Sravan"]
[Black "Kravtsiv, Martyn"]
[WhiteFideId "4306783"]
[BlackFideId "14113147"]
[WhiteElo "2072"]
[BlackElo "2695"]
[Result "0-1"]
[Round "03"]
[TimeControl "180+1"]
[Date "2022.12.06"]
[WhiteClock "0:00:01"]
[BlackClock "0:00:17"]

1. Nf3 {[%clk 0:03:00]}  Nf6 {[%clk 0:02:58]} 2. g3 {[%clk 0:02:57]}  c5 {[%clk 0:02:58]} 3. c3 {[%clk 0:02:54]}  b6 {[%clk 0:02:55]} 4. Bg2 {[%clk 0:02:52]}  Bb7 {[%clk 0:02:56]} 5. O-O {[%clk 0:02:52]}  g6 {[%clk 0:02:56]} 6. d4 {[%clk 0:02:52]}  Bg7 {[%clk 0:02:55]} 7. Nbd2 {[%clk 0:02:52]}  O-O {[%clk 0:02:54]} 8. Qc2 {[%clk 0:02:49]}  cxd4 {[%clk 0:02:50]} 9. cxd4 {[%clk 0:02:49]}  d5 {[%clk 0:02:43]} 10. Ne5 {[%clk 0:02:48]}  Nfd7 {[%clk 0:02:40]} 11. Ndf3 {[%clk 0:02:48]}  f6 {[%clk 0:02:36]} 12. Nxd7 {[%clk 0:02:43]}  Qxd7 {[%clk 0:02:36]} 13. Bf4 {[%clk 0:02:41]}  Nc6 {[%clk 0:02:35]} 14. e4 {[%clk 0:02:24]}  Rac8 {[%clk 0:02:27]} 15. Qe2 {[%clk 0:02:02]}  dxe4 {[%clk 0:02:24]} 16. Qxe4 {[%clk 0:02:01]}  Nb4 {[%clk 0:02:23]} 17. Qe3 {[%clk 0:01:38]}  Nc2 {[%clk 0:01:44]} 18. Qb3+ {[%clk 0:01:37]}  Kh8 {[%clk 0:01:41]} 19. Rac1 {[%clk 0:01:23]}  Bd5 {[%clk 0:01:27]} 20. Qd3 {[%clk 0:01:04]}  Bc4 {[%clk 0:01:25]} 21. Qd2 {[%clk 0:00:44]}  Bxf1 {[%clk 0:01:15]} 22. Bxf1 {[%clk 0:00:40]}  Nxd4 {[%clk 0:01:05]} 23. Qxd4 {[%clk 0:00:20]}  Qxd4 {[%clk 0:01:05]} 24. Nxd4 {[%clk 0:00:20]}  e5 {[%clk 0:01:05]} 25. Ne6 {[%clk 0:00:18]}  exf4 {[%clk 0:01:05]} 26. Rd1 {[%clk 0:00:12]}  Rfe8 {[%clk 0:00:57]} 27. Nxf4 {[%clk 0:00:12]}  Rcd8 {[%clk 0:00:55]} 28. Rc1 {[%clk 0:00:12]}  Bh6 {[%clk 0:00:54]} 29. Rc7 {[%clk 0:00:10]}  Bxf4 {[%clk 0:00:54]} 30. gxf4 {[%clk 0:00:11]}  Rd2 {[%clk 0:00:43]} 31. Rxa7 {[%clk 0:00:08]}  Rxb2 {[%clk 0:00:43]} 32. h4 {[%clk 0:00:04]}  Rb4 {[%clk 0:00:37]} 33. h5 {[%clk 0:00:02]}  Rxf4 {[%clk 0:00:32]} 34. hxg6 {[%clk 0:00:03]}  hxg6 {[%clk 0:00:30]} 35. Bd3 {[%clk 0:00:03]}  Rd8 {[%clk 0:00:28]} 36. Bc2 {[%clk 0:00:01]}  Rd2 {[%clk 0:00:27]} 37. Bb3 {[%clk 0:00:01]}  Rfxf2 {[%clk 0:00:20]} 38. Rb7 {[%clk 0:00:02]}  Rg2+ {[%clk 0:00:19]} 39. Kf1 {[%clk 0:00:02]}  Rdf2+ {[%clk 0:00:19]} 40. Ke1 {[%clk 0:00:03]}  Rb2 {[%clk 0:00:19]} 41. Kf1 {[%clk 0:00:03]}  Rgf2+ {[%clk 0:00:19]} 42. Kg1 {[%clk 0:00:03]}  Rfd2 {[%clk 0:00:18]} 43. Rb8+ {[%clk 0:00:02]}  Kg7 {[%clk 0:00:17]} 44. Rb7+ {[%clk 0:00:02]}  Kh6 {[%clk 0:00:17]} 45. Kf1 {[%clk 0:00:01]}  Rb1+ {[%clk 0:00:17]} 0-1


[Site "https://www.chess.com"]

[Event "Titled Tuesday Blitz December 06 Late 2022"]
[White "Romero Ruscalleda, Josep"]
[Black "Yurasova, Daria"]
[WhiteFideId "2231859"]
[BlackFideId "34146919"]
[WhiteElo "2183"]
[BlackElo "2098"]
[Result "0-1"]
[Round "03"]
[TimeControl "180+1"]
[Date "2022.12.07"]
[WhiteClock "0:00:01"]
[BlackClock "0:00:12"]

1. e4 {[%clk 0:03:00]}  e5 {[%clk 0:03:00]} 2. Nf3 {[%clk 0:03:00]}  Nc6 {[%clk 0:03:00]} 3. Bc4 {[%clk 0:03:00]}  Bc5 {[%clk 0:03:00]} 4. c3 {[%clk 0:03:00]}  Nf6 {[%clk 0:03:00]} 5. b4 {[%clk 0:03:00]}  Be7 {[%clk 0:02:58]} 6. d3 {[%clk 0:03:01]}  d6 {[%clk 0:02:56]} 7. Nbd2 {[%clk 0:02:52]}  h6 {[%clk 0:02:55]} 8. Nf1 {[%clk 0:02:52]}  O-O {[%clk 0:02:53]} 9. Ng3 {[%clk 0:02:52]}  Be6 {[%clk 0:02:51]} 10. O-O {[%clk 0:02:50]}  Bxc4 {[%clk 0:02:48]} 11. dxc4 {[%clk 0:02:49]}  a5 {[%clk 0:02:37]} 12. Bd2 {[%clk 0:02:41]}  axb4 {[%clk 0:02:34]} 13. cxb4 {[%clk 0:02:41]}  Qd7 {[%clk 0:02:34]} 14. Re1 {[%clk 0:02:37]}  Qe6 {[%clk 0:02:32]} 15. Qc2 {[%clk 0:02:34]}  Nd7 {[%clk 0:02:20]} 16. Nf5 {[%clk 0:02:30]}  Bf6 {[%clk 0:02:13]} 17. Rab1 {[%clk 0:02:15]}  Nb6 {[%clk 0:02:11]} 18. Rec1 {[%clk 0:02:08]}  Ra3 {[%clk 0:02:01]} 19. Rb3 {[%clk 0:02:05]}  Rfa8 {[%clk 0:01:57]} 20. Rxa3 {[%clk 0:02:02]}  Rxa3 {[%clk 0:01:58]} 21. Be3 {[%clk 0:01:43]}  Nxb4 {[%clk 0:01:32]} 22. Qb2 {[%clk 0:01:43]}  Rxe3 {[%clk 0:01:24]} 23. Nxe3 {[%clk 0:01:22]}  Nd3 {[%clk 0:01:23]} 24. Qc2 {[%clk 0:01:18]}  Nxc1 {[%clk 0:01:24]} 25. Qxc1 {[%clk 0:01:18]}  Qd7 {[%clk 0:01:23]} 26. Qc2 {[%clk 0:01:07]}  Qc6 {[%clk 0:01:15]} 27. Nd2 {[%clk 0:01:02]}  Bg5 {[%clk 0:01:08]} 28. Nd5 {[%clk 0:00:54]}  Nxd5 {[%clk 0:01:06]} 29. exd5 {[%clk 0:00:53]}  Qb6 {[%clk 0:00:56]} 30. Ne4 {[%clk 0:00:53]}  Qb4 {[%clk 0:00:33]} 31. g3 {[%clk 0:00:48]}  Be7 {[%clk 0:00:28]} 32. Kg2 {[%clk 0:00:35]}  Qe1 {[%clk 0:00:22]} 33. h3 {[%clk 0:00:24]}  h5 {[%clk 0:00:15]} 34. h4 {[%clk 0:00:23]}  Qb4 {[%clk 0:00:12]} 35. Nd2 {[%clk 0:00:20]}  g6 {[%clk 0:00:10]} 36. Nf3 {[%clk 0:00:20]}  Bf6 {[%clk 0:00:10]} 37. Qe2 {[%clk 0:00:18]}  Kg7 {[%clk 0:00:10]} 38. Nd2 {[%clk 0:00:17]}  Qc3 {[%clk 0:00:06]} 39. Ne4 {[%clk 0:00:16]}  Qd4 {[%clk 0:00:06]} 40. Qf3 {[%clk 0:00:16]}  Be7 {[%clk 0:00:07]} 41. Kh2 {[%clk 0:00:15]}  f5 {[%clk 0:00:07]} 42. Ng5 {[%clk 0:00:13]}  Bxg5 {[%clk 0:00:08]} 43. hxg5 {[%clk 0:00:13]}  Qxc4 {[%clk 0:00:08]} 44. Kg2 {[%clk 0:00:13]}  Qg4 {[%clk 0:00:08]} 45. Qb3 {[%clk 0:00:13]}  Qe4+ {[%clk 0:00:08]} 46. f3 {[%clk 0:00:12]}  Qe2+ {[%clk 0:00:09]} 47. Kh3 {[%clk 0:00:12]}  b6 {[%clk 0:00:09]} 48. Qc3 {[%clk 0:00:11]}  Qf1+ {[%clk 0:00:08]} 49. Kh2 {[%clk 0:00:11]}  Qf2+ {[%clk 0:00:09]} 50. Kh3 {[%clk 0:00:12]}  Qc5 {[%clk 0:00:10]} 51. Qb3 {[%clk 0:00:11]}  b5 {[%clk 0:00:07]} 52. Kg2 {[%clk 0:00:11]}  Kf7 {[%clk 0:00:08]} 53. Kh3 {[%clk 0:00:12]}  Ke7 {[%clk 0:00:08]} 54. Qb2 {[%clk 0:00:11]}  Kd7 {[%clk 0:00:08]} 55. Qe2 {[%clk 0:00:10]}  Qxd5 {[%clk 0:00:08]} 56. Qc2 {[%clk 0:00:09]}  Qc4 {[%clk 0:00:09]} 57. Qd2 {[%clk 0:00:09]}  d5 {[%clk 0:00:09]} 58. Kg2 {[%clk 0:00:07]}  d4 {[%clk 0:00:09]} 59. Qb2 {[%clk 0:00:07]}  c6 {[%clk 0:00:09]} 60. Qa3 {[%clk 0:00:06]}  Qc2+ {[%clk 0:00:08]} 61. Kh3 {[%clk 0:00:06]}  Qc3 {[%clk 0:00:09]} 62. Qa7+ {[%clk 0:00:05]}  Kd6 {[%clk 0:00:10]} 63. Qb8+ {[%clk 0:00:05]}  Kd5 {[%clk 0:00:10]} 64. Qd8+ {[%clk 0:00:04]}  Kc4 {[%clk 0:00:10]} 65. Qg8+ {[%clk 0:00:01]}  Kb4 {[%clk 0:00:11]} 66. Qxg6 {[%clk 0:00:01]}  d3 {[%clk 0:00:11]} 67. Qxf5 {[%clk 0:00:01]}  d2 {[%clk 0:00:12]} 68. Qb1+ {[%clk 0:00:01]}  Kc5 {[%clk 0:00:12]} 69. g6 {[%clk 0:00:01]}  Qd4 {[%clk 0:00:12]} 0-1


[Site "https://www.chess.com"]

[Event "Titled Tuesday Blitz December 06 Late 2022"]
[White "Rose, Felix"]
[Black "Krishnan, Varun"]
[WhiteFideId "5105722"]
[BlackFideId "5054508"]
[WhiteElo "2039"]
[BlackElo "2552"]
[Result "1/2-1/2"]
[Round "03"]
[TimeControl "180+1"]
[Date "2022.12.07"]
[WhiteClock "0:00:35"]
[BlackClock "0:00:06"]

1. e4 {[%clk 0:02:59]}  e5 {[%clk 0:00:38]} 2. Nf3 {[%clk 0:02:59]}  Nc6 {[%clk 0:00:36]} 3. Bb5 {[%clk 0:02:56]}  a6 {[%clk 0:00:35]} 4. Ba4 {[%clk 0:02:56]}  Nf6 {[%clk 0:00:34]} 5. O-O {[%clk 0:02:55]}  Be7 {[%clk 0:00:35]} 6. Re1 {[%clk 0:02:56]}  b5 {[%clk 0:00:35]} 7. Bb3 {[%clk 0:02:56]}  O-O {[%clk 0:00:36]} 8. h3 {[%clk 0:02:57]}  d6 {[%clk 0:00:35]} 9. c3 {[%clk 0:02:56]}  Na5 {[%clk 0:00:35]} 10. Bc2 {[%clk 0:02:57]}  c5 {[%clk 0:00:35]} 11. d4 {[%clk 0:02:57]}  Qc7 {[%clk 0:00:34]} 12. Nbd2 {[%clk 0:02:57]}  cxd4 {[%clk 0:00:33]} 13. cxd4 {[%clk 0:02:54]}  Nc6 {[%clk 0:00:33]} 14. Nb3 {[%clk 0:02:43]}  a5 {[%clk 0:00:32]} 15. Be3 {[%clk 0:02:43]}  a4 {[%clk 0:00:32]} 16. Nbd2 {[%clk 0:02:41]}  Ba6 {[%clk 0:00:28]} 17. Rc1 {[%clk 0:02:36]}  Qb7 {[%clk 0:00:27]} 18. Bb1 {[%clk 0:02:31]}  b4 {[%clk 0:00:26]} 19. d5 {[%clk 0:01:59]}  Na5 {[%clk 0:00:25]} 20. Qxa4 {[%clk 0:01:55]}  Nc4 {[%clk 0:00:25]} 21. Qb3 {[%clk 0:01:38]}  Na5 {[%clk 0:00:25]} 22. Qd1 {[%clk 0:01:36]}  Rfc8 {[%clk 0:00:21]} 23. Rxc8+ {[%clk 0:01:32]}  Rxc8 {[%clk 0:00:20]} 24. Qa4 {[%clk 0:01:29]}  Nc4 {[%clk 0:00:18]} 25. Nxc4 {[%clk 0:01:28]}  Bxc4 {[%clk 0:00:18]} 26. Rc1 {[%clk 0:01:20]}  Be2 {[%clk 0:00:13]} 27. Rxc8+ {[%clk 0:01:12]}  Qxc8 {[%clk 0:00:13]} 28. Qxb4 {[%clk 0:01:11]}  Bxf3 {[%clk 0:00:13]} 29. gxf3 {[%clk 0:01:11]}  Qxh3 {[%clk 0:00:13]} 30. a4 {[%clk 0:00:56]}  Qxf3 {[%clk 0:00:12]} 31. Bd3 {[%clk 0:00:50]}  Ng4 {[%clk 0:00:12]} 32. Bb6 {[%clk 0:00:33]}  Qd1+ {[%clk 0:00:10]} 33. Bf1 {[%clk 0:00:32]}  h5 {[%clk 0:00:10]} 34. a5 {[%clk 0:00:28]}  Qf3 {[%clk 0:00:10]} 35. Qc3 {[%clk 0:00:28]}  Qf4 {[%clk 0:00:09]} 36. Qg3 {[%clk 0:00:19]}  Qg5 {[%clk 0:00:09]} 37. f3 {[%clk 0:00:19]}  Qd2 {[%clk 0:00:05]} 38. fxg4 {[%clk 0:00:19]}  h4 {[%clk 0:00:05]} 39. Qg2 {[%clk 0:00:19]}  Qb4 {[%clk 0:00:05]} 40. Be2 {[%clk 0:00:17]}  Bg5 {[%clk 0:00:04]} 41. Qf3 {[%clk 0:00:18]}  Qe1+ {[%clk 0:00:03]} 42. Qf1 {[%clk 0:00:18]}  Qg3+ {[%clk 0:00:03]} 43. Qg2 {[%clk 0:00:19]}  Qe1+ {[%clk 0:00:03]} 44. Bf1 {[%clk 0:00:20]}  Be3+ {[%clk 0:00:03]} 45. Bxe3 {[%clk 0:00:20]}  Qxe3+ {[%clk 0:00:03]} 46. Qf2 {[%clk 0:00:21]}  Qg5 {[%clk 0:00:03]} 47. a6 {[%clk 0:00:21]}  Qxg4+ {[%clk 0:00:03]} 48. Qg2 {[%clk 0:00:22]}  Qf4 {[%clk 0:00:03]} 49. a7 {[%clk 0:00:22]}  Qe3+ {[%clk 0:00:03]} 50. Kh1 {[%clk 0:00:23]}  Qxa7 {[%clk 0:00:03]} 51. Qg4 {[%clk 0:00:23]}  Qe3 {[%clk 0:00:02]} 52. Qc8+ {[%clk 0:00:23]}  Kh7 {[%clk 0:00:02]} 53. Qf5+ {[%clk 0:00:24]}  Kg8 {[%clk 0:00:02]} 54. Bh3 {[%clk 0:00:24]}  Qg3 {[%clk 0:00:02]} 55. Qf1 {[%clk 0:00:24]}  Qe3 {[%clk 0:00:02]} 56. Qg2 {[%clk 0:00:25]}  Qc1+ {[%clk 0:00:02]} 57. Kh2 {[%clk 0:00:25]}  Qf4+ {[%clk 0:00:03]} 58. Kh1 {[%clk 0:00:25]}  Qc1+ {[%clk 0:00:04]} 59. Qg1 {[%clk 0:00:26]}  Qf4 {[%clk 0:00:05]} 60. Bf5 {[%clk 0:00:27]}  Qf3+ {[%clk 0:00:05]} 61. Qg2 {[%clk 0:00:27]}  Qf4 {[%clk 0:00:05]} 62. Qg4 {[%clk 0:00:27]}  Qc1+ {[%clk 0:00:05]} 63. Kh2 {[%clk 0:00:27]}  Qxb2+ {[%clk 0:00:06]} 64. Kh3 {[%clk 0:00:28]}  g6 {[%clk 0:00:06]} 65. Bxg6 {[%clk 0:00:28]}  Qc3+ {[%clk 0:00:06]} 66. Kxh4 {[%clk 0:00:29]}  fxg6 {[%clk 0:00:07]} 67. Qxg6+ {[%clk 0:00:30]}  Kh8 {[%clk 0:00:08]} 68. Qf6+ {[%clk 0:00:30]}  Kh7 {[%clk 0:00:07]} 69. Qe7+ {[%clk 0:00:29]}  Kg6 {[%clk 0:00:06]} 70. Qxd6+ {[%clk 0:00:30]}  Kf7 {[%clk 0:00:07]} 71. Qd7+ {[%clk 0:00:30]}  Kf6 {[%clk 0:00:07]} 72. Qf5+ {[%clk 0:00:30]}  Kg7 {[%clk 0:00:07]} 73. Qg5+ {[%clk 0:00:30]}  Kf7 {[%clk 0:00:07]} 74. Qf5+ {[%clk 0:00:30]}  Kg7 {[%clk 0:00:08]} 75. d6 {[%clk 0:00:31]}  Qe1+ {[%clk 0:00:07]} 76. Kh3 {[%clk 0:00:31]}  Qh1+ {[%clk 0:00:06]} 77. Kg3 {[%clk 0:00:31]}  Qg1+ {[%clk 0:00:07]} 78. Kh4 {[%clk 0:00:31]}  Qh2+ {[%clk 0:00:07]} 79. Kg5 {[%clk 0:00:32]}  Qg3+ {[%clk 0:00:07]} 80. Qg4 {[%clk 0:00:33]}  Qh2 {[%clk 0:00:06]} 81. Kf5+ {[%clk 0:00:33]}  Kf8 {[%clk 0:00:06]} 82. Ke6 {[%clk 0:00:33]}  Qa2+ {[%clk 0:00:04]} 83. Kxe5 {[%clk 0:00:34]}  Qb2+ {[%clk 0:00:05]} 84. Ke6 {[%clk 0:00:34]}  Qb3+ {[%clk 0:00:05]} 85. Kf5 {[%clk 0:00:33]}  Qf7+ {[%clk 0:00:05]} 86. Kg5 {[%clk 0:00:33]}  Qg7+ {[%clk 0:00:05]} 87. Kf4 {[%clk 0:00:34]}  Qh6+ {[%clk 0:00:04]} 88. Qg5 {[%clk 0:00:34]}  Qxd6+ {[%clk 0:00:04]} 89. Qe5 {[%clk 0:00:34]}  Qxe5+ {[%clk 0:00:05]} 90. Kxe5 {[%clk 0:00:34]}  Ke7 {[%clk 0:00:05]} 91. Kf5 {[%clk 0:00:34]}  Kf7 {[%clk 0:00:05]} 92. Ke5 {[%clk 0:00:34]}  Ke7 {[%clk 0:00:05]} 93. Kd5 {[%clk 0:00:35]}  Kd7 {[%clk 0:00:06]} 94. Ke5 {[%clk 0:00:35]}  Ke7 {[%clk 0:00:06]} 1/2-1/2


[Site "https://www.chess.com"]

[Event "Titled Tuesday Blitz December 06 Late 2022"]
[White "Rustemov, Alexander"]
[Black "Manukyan, Sargis A."]
[WhiteFideId "4119002"]
[BlackFideId "13303970"]
[WhiteElo "2798"]
[BlackElo "2562"]
[Result "1/2-1/2"]
[Round "03"]
[TimeControl "180+1"]
[Date "2022.12.07"]
[WhiteClock "0:00:11"]
[BlackClock "0:00:10"]

1. d4 {[%clk 0:03:00]}  Nf6 {[%clk 0:02:59]} 2. c4 {[%clk 0:03:01]}  g6 {[%clk 0:03:00]} 3. Nf3 {[%clk 0:03:01]}  Bg7 {[%clk 0:02:59]} 4. g3 {[%clk 0:03:01]}  O-O {[%clk 0:03:00]} 5. Bg2 {[%clk 0:03:02]}  d5 {[%clk 0:03:00]} 6. cxd5 {[%clk 0:03:01]}  Nxd5 {[%clk 0:02:59]} 7. O-O {[%clk 0:03:01]}  c5 {[%clk 0:02:58]} 8. Nc3 {[%clk 0:03:00]}  cxd4 {[%clk 0:02:55]} 9. Nxd4 {[%clk 0:02:59]}  Nxc3 {[%clk 0:02:55]} 10. bxc3 {[%clk 0:03:00]}  Qa5 {[%clk 0:02:50]} 11. Qb3 {[%clk 0:02:52]}  Nc6 {[%clk 0:02:48]} 12. Be3 {[%clk 0:02:44]}  Rd8 {[%clk 0:02:27]} 13. Bxc6 {[%clk 0:02:39]}  Bxd4 {[%clk 0:02:24]} 14. cxd4 {[%clk 0:02:28]}  bxc6 {[%clk 0:02:23]} 15. Rfc1 {[%clk 0:02:21]}  Be6 {[%clk 0:02:12]} 16. Qc3 {[%clk 0:02:14]}  Qxc3 {[%clk 0:02:11]} 17. Rxc3 {[%clk 0:02:14]}  Bd5 {[%clk 0:02:06]} 18. f3 {[%clk 0:02:13]}  Rdb8 {[%clk 0:01:58]} 19. Kf2 {[%clk 0:02:09]}  Rb2 {[%clk 0:01:56]} 20. a4 {[%clk 0:02:08]}  Rab8 {[%clk 0:01:48]} 21. Bc1 {[%clk 0:02:01]}  R2b3 {[%clk 0:01:36]} 22. Rxb3 {[%clk 0:01:56]}  Rxb3 {[%clk 0:01:36]} 23. e4 {[%clk 0:01:55]}  Be6 {[%clk 0:01:32]} 24. Ba3 {[%clk 0:01:45]}  Kf8 {[%clk 0:01:31]} 25. a5 {[%clk 0:01:43]}  a6 {[%clk 0:01:23]} 26. g4 {[%clk 0:01:43]}  f5 {[%clk 0:01:11]} 27. gxf5 {[%clk 0:01:34]}  gxf5 {[%clk 0:01:11]} 28. Bc5 {[%clk 0:01:32]}  fxe4 {[%clk 0:01:03]} 29. fxe4 {[%clk 0:01:32]}  Rb2+ {[%clk 0:00:57]} 30. Kg3 {[%clk 0:01:31]}  Ra2 {[%clk 0:00:42]} 31. Rb1 {[%clk 0:01:28]}  Re2 {[%clk 0:00:22]} 32. Kf4 {[%clk 0:01:26]}  Rxh2 {[%clk 0:00:14]} 33. Rb7 {[%clk 0:01:25]}  Bc4 {[%clk 0:00:12]} 34. Rxe7 {[%clk 0:01:22]}  Kg8 {[%clk 0:00:12]} 35. e5 {[%clk 0:01:15]}  Bd5 {[%clk 0:00:10]} 36. e6 {[%clk 0:01:14]}  Rf2+ {[%clk 0:00:09]} 37. Ke5 {[%clk 0:01:11]}  Re2+ {[%clk 0:00:08]} 38. Kd6 {[%clk 0:01:11]}  h5 {[%clk 0:00:08]} 39. Re8+ {[%clk 0:01:10]}  Kg7 {[%clk 0:00:07]} 40. e7 {[%clk 0:01:10]}  Bf7 {[%clk 0:00:07]} 41. Rb8 {[%clk 0:00:56]}  h4 {[%clk 0:00:07]} 42. d5 {[%clk 0:00:51]}  cxd5 {[%clk 0:00:07]} 43. Bd4+ {[%clk 0:00:50]}  Kg6 {[%clk 0:00:07]} 44. Rh8 {[%clk 0:00:48]}  Re4 {[%clk 0:00:04]} 45. Bf2 {[%clk 0:00:40]}  d4 {[%clk 0:00:04]} 46. Rxh4 {[%clk 0:00:29]}  Rxh4 {[%clk 0:00:04]} 47. Bxh4 {[%clk 0:00:30]}  d3 {[%clk 0:00:05]} 48. Be1 {[%clk 0:00:30]}  Be8 {[%clk 0:00:04]} 49. Ke6 {[%clk 0:00:21]}  Bb5 {[%clk 0:00:04]} 50. Bb4 {[%clk 0:00:18]}  Be8 {[%clk 0:00:05]} 51. Ke5 {[%clk 0:00:17]}  Kf7 {[%clk 0:00:05]} 52. Kd6 {[%clk 0:00:17]}  Bb5 {[%clk 0:00:05]} 53. Kc7 {[%clk 0:00:16]}  Be8 {[%clk 0:00:06]} 54. Kb6 {[%clk 0:00:12]}  Bb5 {[%clk 0:00:07]} 55. Kc7 {[%clk 0:00:12]}  Ke8 {[%clk 0:00:08]} 56. Kd6 {[%clk 0:00:12]}  d2 {[%clk 0:00:08]} 57. Bxd2 {[%clk 0:00:11]}  Bf1 {[%clk 0:00:09]} 58. Bb4 {[%clk 0:00:11]}  Bb5 {[%clk 0:00:10]} 1/2-1/2


[Site "https://www.chess.com"]

[Event "Titled Tuesday Blitz December 06 Late 2022"]
[White "Sarana, Alexey"]
[Black "Nazari, Arad"]
[WhiteFideId "24133795"]
[BlackFideId "12577324"]
[WhiteElo "2708"]
[BlackElo "2264"]
[Result "0-1"]
[Round "03"]
[TimeControl "180+1"]
[Date "2022.12.06"]
[WhiteClock "0:00:22"]
[BlackClock "0:00:14"]

1. d4 {[%clk 0:03:00]}  Nf6 {[%clk 0:02:59]} 2. c4 {[%clk 0:03:00]}  g6 {[%clk 0:02:58]} 3. Nc3 {[%clk 0:03:01]}  d5 {[%clk 0:02:58]} 4. cxd5 {[%clk 0:02:58]}  Nxd5 {[%clk 0:02:59]} 5. e4 {[%clk 0:02:59]}  Nxc3 {[%clk 0:02:59]} 6. bxc3 {[%clk 0:03:00]}  Bg7 {[%clk 0:02:59]} 7. Be3 {[%clk 0:03:00]}  c5 {[%clk 0:02:58]} 8. Qd2 {[%clk 0:03:01]}  Qa5 {[%clk 0:02:55]} 9. Rc1 {[%clk 0:02:59]}  O-O {[%clk 0:02:56]} 10. d5 {[%clk 0:02:58]}  Rd8 {[%clk 0:02:52]} 11. c4 {[%clk 0:02:50]}  Qxd2+ {[%clk 0:02:52]} 12. Kxd2 {[%clk 0:02:46]}  Na6 {[%clk 0:02:47]} 13. Bd3 {[%clk 0:02:46]}  b6 {[%clk 0:02:44]} 14. a3 {[%clk 0:02:44]}  Bb7 {[%clk 0:02:40]} 15. Rb1 {[%clk 0:02:34]}  e6 {[%clk 0:02:32]} 16. Ne2 {[%clk 0:02:33]}  Rac8 {[%clk 0:02:22]} 17. Nc3 {[%clk 0:02:29]}  Nc7 {[%clk 0:02:13]} 18. Rhe1 {[%clk 0:02:16]}  Ba6 {[%clk 0:01:57]} 19. Bg5 {[%clk 0:02:11]}  f6 {[%clk 0:01:52]} 20. Bf4 {[%clk 0:02:10]}  e5 {[%clk 0:01:49]} 21. Bg3 {[%clk 0:02:07]}  Bh6+ {[%clk 0:01:45]} 22. Kc2 {[%clk 0:02:07]}  Ne8 {[%clk 0:01:45]} 23. a4 {[%clk 0:02:05]}  Nd6 {[%clk 0:01:44]} 24. Nb5 {[%clk 0:02:05]}  Bxb5 {[%clk 0:01:25]} 25. axb5 {[%clk 0:02:06]}  Rc7 {[%clk 0:01:22]} 26. Ra1 {[%clk 0:02:06]}  Re8 {[%clk 0:01:22]} 27. Ra4 {[%clk 0:02:03]}  Ree7 {[%clk 0:01:21]} 28. Re2 {[%clk 0:01:54]}  Bf4 {[%clk 0:01:09]} 29. f3 {[%clk 0:01:54]}  Bxg3 {[%clk 0:01:00]} 30. hxg3 {[%clk 0:01:55]}  Kg7 {[%clk 0:00:51]} 31. Kd2 {[%clk 0:01:55]}  Nf7 {[%clk 0:00:44]} 32. Ke3 {[%clk 0:01:54]}  Nd6 {[%clk 0:00:45]} 33. Re1 {[%clk 0:01:53]}  Nf7 {[%clk 0:00:45]} 34. Rh1 {[%clk 0:01:54]}  Nd6 {[%clk 0:00:45]} 35. Rh2 {[%clk 0:01:54]}  Re8 {[%clk 0:00:44]} 36. Ra2 {[%clk 0:01:54]}  Rd8 {[%clk 0:00:41]} 37. Ra1 {[%clk 0:01:54]}  Rh8 {[%clk 0:00:41]} 38. f4 {[%clk 0:01:53]}  Re7 {[%clk 0:00:39]} 39. Kf3 {[%clk 0:01:53]}  Rf8 {[%clk 0:00:35]} 40. Rah1 {[%clk 0:01:51]}  Kg8 {[%clk 0:00:35]} 41. Re1 {[%clk 0:01:20]}  Kg7 {[%clk 0:00:34]} 42. Rh4 {[%clk 0:01:18]}  Kg8 {[%clk 0:00:34]} 43. Rh6 {[%clk 0:01:18]}  Nf7 {[%clk 0:00:32]} 44. Rh4 {[%clk 0:01:10]}  Nd6 {[%clk 0:00:32]} 45. Reh1 {[%clk 0:00:46]}  f5 {[%clk 0:00:30]} 46. exf5 {[%clk 0:00:46]}  e4+ {[%clk 0:00:28]} 47. Bxe4 {[%clk 0:00:46]}  Rxe4 {[%clk 0:00:27]} 48. fxg6 {[%clk 0:00:39]}  hxg6 {[%clk 0:00:26]} 49. Rh8+ {[%clk 0:00:39]}  Kf7 {[%clk 0:00:24]} 50. R1h7+ {[%clk 0:00:39]}  Ke8 {[%clk 0:00:23]} 51. Rxf8+ {[%clk 0:00:36]}  Kxf8 {[%clk 0:00:24]} 52. Rd7 {[%clk 0:00:37]}  Ne8 {[%clk 0:00:14]} 53. Kxe4 {[%clk 0:00:28]}  Nf6+ {[%clk 0:00:15]} 54. Ke5 {[%clk 0:00:29]}  Nxd7+ {[%clk 0:00:16]} 55. Kd6 {[%clk 0:00:30]}  Nf6 {[%clk 0:00:16]} 56. Kc7 {[%clk 0:00:23]}  Ke7 {[%clk 0:00:16]} 57. g4 {[%clk 0:00:20]}  Ne8+ {[%clk 0:00:16]} 58. Kc6 {[%clk 0:00:18]}  Nd6 {[%clk 0:00:17]} 59. f5 {[%clk 0:00:18]}  gxf5 {[%clk 0:00:17]} 60. gxf5 {[%clk 0:00:19]}  Nxf5 {[%clk 0:00:16]} 61. g4 {[%clk 0:00:16]}  Nd6 {[%clk 0:00:16]} 62. g5 {[%clk 0:00:17]}  Nxc4 {[%clk 0:00:16]} 63. g6 {[%clk 0:00:17]}  Kf6 {[%clk 0:00:08]} 64. Kb7 {[%clk 0:00:17]}  Kxg6 {[%clk 0:00:08]} 65. Kxa7 {[%clk 0:00:18]}  Kf6 {[%clk 0:00:08]} 66. d6 {[%clk 0:00:18]}  Nxd6 {[%clk 0:00:08]} 67. Kxb6 {[%clk 0:00:19]}  c4 {[%clk 0:00:09]} 68. Kc5 {[%clk 0:00:18]}  c3 {[%clk 0:00:10]} 69. Kxd6 {[%clk 0:00:18]}  c2 {[%clk 0:00:10]} 70. b6 {[%clk 0:00:19]}  c1=Q {[%clk 0:00:11]} 71. b7 {[%clk 0:00:19]}  Qf4+ {[%clk 0:00:12]} 72. Kd7 {[%clk 0:00:20]}  Qb8 {[%clk 0:00:12]} 73. Kc6 {[%clk 0:00:21]}  Ke6 {[%clk 0:00:13]} 74. Kb6 {[%clk 0:00:21]}  Kd6 {[%clk 0:00:14]} 75. Ka6 {[%clk 0:00:22]}  Kc5 {[%clk 0:00:14]} 0-1


[Site "https://www.chess.com"]